bitfinex/quotes_BTCUSD_20220307
["timestamp","ask_amount","ask_price","bid_price","bid_amount"]
[1646656609220,1.47189983,38743.0,38742.0,0.67191427]
[1646656609425,1.16575533,38743.0,38742.0,0.6666782]
[1646656609623,1.26575533,38743.0,38742.0,0.6666782]
[1646656609820,1.83034033,38743.0,38742.0,0.5943782]
[1646656610018,1.83034033,38743.0,38742.0,0.2068692]
[1646656610422,1.78034033,38743.0,38742.0,0.6568692]
[1646656611019,1.82000994,38743.0,38742.0,0.6568692]
[1646656611219,1.82000994,38743.0,38742.0,0.2693602]
[1646656611420,1.45949338,38743.0,38742.0,0.2693602]
[1646656612569,1.45949338,38743.0,38742.0,0.7693602]
[1646656612778,2.28553338,38743.0,38742.0,0.7693602]
[1646656612968,2.28553338,38743.0,38742.0,0.3818372]
[1646656613169,2.25975678,38743.0,38742.0,0.3818372]
[1646656613369,0.68034733,38740.0,38739.0,0.00028148]
[1646656613570,1.03011544,38740.0,38731.0,0.7601]
[1646656613772,0.129178,38738.0,38731.0,0.7601]
[1646656613969,0.3,38736.0,38731.0,0.7601]
[1646656614169,0.0517,38735.0,38728.0,0.09113374]
[1646656614872,0.0517,38735.0,38730.0,0.00028203]
[1646656614873,0.35342996,38735.0,38730.0,0.00028203]
[1646656615072,0.00025843,38731.0,38730.0,0.00028203]
[1646656615276,0.0517,38731.0,38730.0,0.00028203]
[1646656615925,0.0517,38731.0,38728.0,0.09113374]
[1646656616122,0.5517,38731.0,38729.0,0.00028204]
[1646656617125,0.5517,38731.0,38728.0,0.15572074]
[1646656617322,0.5517,38731.0,38728.0,0.15599851]
[1646656617527,0.5,38731.0,38729.0,0.394017]
[1646656617922,0.5,38731.0,38729.0,0.45154544]
[1646656618120,0.5,38731.0,38730.0,0.17596]
[1646656618323,0.5,38731.0,38730.0,0.619977]
[1646656618722,0.5,38731.0,38730.0,0.22596]
[1646656618927,0.5,38731.0,38730.0,0.2]
[1646656619225,0.064578,38735.0,38732.0,0.19514209]
[1646656619226,0.5,38734.0,38732.0,0.19514209]
[1646656619669,0.5,38734.0,38732.0,0.24514209]
[1646656619870,0.064578,38735.0,38732.0,0.24514209]
[1646656620670,0.064577,38739.0,38732.0,0.24514209]
[1646656620873,0.5,38737.0,38734.0,0.064575]
[1646656621269,0.5,38737.0,38734.0,0.114575]
[1646656621669,0.064582,38736.0,38734.0,0.114575]
[1646656621869,0.064582,38736.0,38734.0,0.05]
[1646656621870,0.36631196,38736.0,38734.0,0.05]
[1646656622071,0.43089996,38736.0,38734.0,0.00027803]
[1646656622573,0.12917,38736.0,38734.0,0.00027803]
[1646656623172,0.12917,38736.0,38732.0,0.064587]
[1646656623173,0.5,38735.0,38732.0,0.064587]
[1646656623418,0.5,38735.0,38733.0,0.00027803]
[1646656624216,0.5,38735.0,38732.0,0.064587]
[1646656624415,0.5,38735.0,38732.0,0.06486501]
[1646656625517,0.5,38735.0,38732.0,0.064587]
[1646656625715,0.5,38735.0,38732.0,0.06486501]
[1646656626720,0.5,38735.0,38732.0,0.064587]
[1646656626919,0.5,38735.0,38732.0,0.06486501]
[1646656627966,0.5,38735.0,38732.0,0.064587]
[1646656628167,0.5,38735.0,38732.0,0.06486502]
[1646656628369,0.499,38735.0,38733.0,0.17377929]
[1646656628568,0.499,38735.0,38733.0,0.35293229]
[1646656629170,0.499,38735.0,38734.0,0.29353231]
[1646656629371,0.499,38735.0,38733.0,0.08296424]
[1646656629970,0.499,38735.0,38733.0,0.46638207]
[1646656630180,1.02434,38740.0,38734.0,0.64990871]
[1646656630478,0.97974,38740.0,38739.0,0.544017]
[1646656630672,0.592455,38740.0,38739.0,0.569977]
[1646656630942,0.592455,38740.0,38739.0,0.93614103]
[1646656631140,0.592455,38740.0,38739.0,1.32988178]
[1646656631141,0.205145,38740.0,38739.0,1.32988178]
[1646656631642,0.205145,38740.0,38739.0,1.11371775]
[1646656631842,0.205145,38740.0,38739.0,0.56970075]
[1646656632242,0.205145,38740.0,38739.0,0.54374075]
[1646656632447,0.205145,38740.0,38739.0,0.41970075]
[1646656632641,0.205145,38740.0,38739.0,0.63165886]
[1646656632941,0.205145,38740.0,38739.0,0.60569886]
[1646656633342,0.0741051,38740.0,38739.0,0.60569886]
[1646656634342,0.0741051,38740.0,38739.0,0.38104452]
[1646656634545,0.0741051,38740.0,38739.0,0.16908641]
[1646656634774,0.0741051,38740.0,38737.0,0.290307]
[1646656634974,0.0741051,38740.0,38737.0,0.090507]
[1646656635173,0.0741051,38740.0,38737.0,0.064547]
[1646656635374,0.0741051,38740.0,38737.0,0.06484571]
[1646656635576,0.37737864,38740.0,38737.0,0.06484571]
[1646656635779,0.0741051,38740.0,38737.0,0.06484571]
[1646656636374,0.0741051,38740.0,38737.0,0.064547]
[1646656636576,0.0741051,38740.0,38737.0,0.06484571]
[1646656637580,0.0741051,38740.0,38738.0,0.46579411]
[1646656637780,0.0741051,38740.0,38738.0,0.51579411]
[1646656638286,0.16469736,38741.0,38738.0,0.64491811]
[1646656638921,0.1,38749.0,38738.0,0.42801111]
[1646656639127,0.5,38748.0,38746.0,0.064557]
[1646656639321,0.00025835,38747.0,38746.0,0.114557]
[1646656640123,0.5,38748.0,38746.0,0.114557]
[1646656640522,0.5,38748.0,38746.0,0.05]
[1646656640723,0.5,38748.0,38745.0,0.22567035]
[1646656640931,0.5,38748.0,38746.0,0.6966513]
[1646656641127,0.0999,38753.0,38747.0,0.16174095]
[1646656641324,0.5,38752.0,38751.0,0.1862378]
[1646656641727,0.5,38752.0,38751.0,0.41501648]
[1646656642377,0.5,38755.0,38751.0,0.41501648]
[1646656643275,0.21097096,38758.0,38751.0,0.1862378]
[1646656643579,0.21097096,38758.0,38747.0,0.21174095]
[1646656643580,0.21699528,38754.0,38747.0,0.05]
[1646656643775,0.21699528,38754.0,38746.0,0.05]
[1646656644174,0.21699528,38754.0,38744.0,1.0869]
[1646656644374,0.21699528,38754.0,38744.0,0.05]
[1646656644576,0.064557,38753.0,38743.0,0.15788237]
[1646656645577,0.067557,38753.0,38743.0,0.15788237]
[1646656645774,0.067557,38753.0,38747.0,0.24883614]
[1646656646038,0.003,38753.0,38747.0,0.24883614]
[1646656646237,0.003,38753.0,38748.0,0.064551]
[1646656646642,0.61097096,38754.0,38743.0,0.15788237]
[1646656647036,0.064555,38753.0,38746.0,0.129099]
[1646656647237,0.064555,38753.0,38746.0,0.179099]
[1646656647535,0.24943269,38753.0,38746.0,0.179099]
[1646656647736,0.24943269,38753.0,38747.0,0.064556]
[1646656647938,0.24943269,38753.0,38748.0,0.064555]
[1646656648440,0.24943269,38753.0,38746.0,0.179099]
[1646656648639,0.24943269,38753.0,38746.0,0.05]
[1646656649039,0.24443269,38753.0,38743.0,0.79648408]
[1646656649246,0.24443269,38753.0,38743.0,0.84648408]
[1646656649442,0.45940365,38753.0,38745.0,0.064555]
[1646656650471,0.45940365,38753.0,38743.0,0.63297249]
[1646656650871,0.45540365,38753.0,38745.0,0.06455631]
[1646656651070,0.45540365,38753.0,38747.0,0.064557]
[1646656651270,0.21097096,38753.0,38747.0,0.064557]
[1646656651472,0.31097096,38754.0,38747.0,0.064557]
[1646656651669,0.5,38753.0,38747.0,0.064557]
[1646656651870,0.5,38753.0,38748.0,0.0645518]
[1646656652070,0.31097096,38754.0,38748.0,0.0645518]
[1646656652270,0.17452242,38752.0,38748.0,0.0645518]
[1646656652471,0.17452242,38752.0,38749.0,0.273383]
[1646656652770,0.17452242,38752.0,38747.0,0.064557]
[1646656653170,0.17452242,38752.0,38748.0,0.06455156]
[1646656653416,0.17452242,38752.0,38747.0,0.064557]
[1646656654318,0.17452242,38752.0,38745.0,0.38601321]
[1646656654519,0.17452242,38752.0,38745.0,0.25690621]
[1646656654718,0.3,38750.0,38743.0,0.15788237]
[1646656654918,0.2234165,38746.0,38743.0,0.15788237]
[1646656655121,0.2234165,38746.0,38739.0,0.00027767]
[1646656655122,0.5234165,38746.0,38739.0,0.00027767]
[1646656655328,0.0517,38745.0,38739.0,0.00027767]
[1646656655519,0.0517,38745.0,38736.0,0.06457204]
[1646656655719,0.3026343,38744.0,38739.0,0.00027766]
[1646656655919,0.0517,38743.0,38739.0,0.00027766]
[1646656656722,0.0517,38743.0,38737.0,0.18962543]
[1646656656921,0.0517,38743.0,38739.0,0.00027765]
[1646656657193,0.3,38742.0,38739.0,0.00027765]
[1646656657993,0.3,38742.0,38737.0,0.18962543]
[1646656657994,0.0557,38743.0,38737.0,0.18962543]
[1646656658195,0.0557,38743.0,38742.0,0.15]
[1646656658393,0.05595836,38743.0,38742.0,0.15]
[1646656658793,0.05195836,38743.0,38742.0,0.15]
[1646656659398,0.05195836,38743.0,38741.0,0.24503733]
[1646656659696,0.00025836,38742.0,38741.0,0.24503733]
[1646656659994,0.00025836,38742.0,38741.0,0.129124]
[1646656660197,0.00025836,38742.0,38741.0,0.279124]
[1646656660396,0.00025836,38742.0,38741.0,0.15]
[1646656661247,0.00025836,38742.0,38741.0,0.13490363]
[1646656661248,1.17265933,38742.0,38741.0,0.13490363]
[1646656661422,1.17265933,38742.0,38739.0,0.00027766]
[1646656661423,0.98009519,38740.0,38739.0,0.00027766]
[1646656661621,0.3,38731.0,38728.0,0.3023319]
[1646656661819,0.3,38731.0,38726.0,0.3791729]
[1646656662219,0.3,38731.0,38726.0,0.2499999]
[1646656662419,0.3,38731.0,38724.0,0.3023319]
[1646656662626,0.3,38731.0,38723.0,9.07525918]
[1646656662627,0.0517,38730.0,38723.0,8.88465178]
[1646656662921,0.3,38726.0,38723.0,8.88465178]
[1646656663121,0.1517,38725.0,38723.0,8.88465178]
[1646656664767,0.0517,38725.0,38723.0,8.88465178]
[1646656665469,0.0567,38725.0,38723.0,8.88465178]
[1646656666069,0.0567,38725.0,38723.0,9.01382906]
[1646656666869,0.0517,38725.0,38723.0,9.01382906]
[1646656667172,0.0517,38725.0,38723.0,8.88465178]
[1646656667569,0.0567,38725.0,38723.0,8.88465178]
[1646656668170,0.2225104,38725.0,38723.0,8.88465178]
[1646656668416,0.12922234,38724.0,38723.0,8.88465178]
[1646656669618,0.004,38724.0,38723.0,8.88465178]
[1646656669820,0.12767697,38724.0,38723.0,8.88465178]
[1646656670520,0.12765779,38724.0,38723.0,8.88465178]
[1646656670721,0.12365779,38724.0,38723.0,8.88465178]
[1646656671120,0.12365779,38724.0,38723.0,9.03465178]
[1646656671920,0.12365779,38724.0,38723.0,8.88465178]
[1646656672477,0.57633239,38724.0,38723.0,8.88465178]
[1646656672671,0.27535779,38724.0,38723.0,8.88465178]
[1646656673071,0.77035779,38724.0,38723.0,8.88465178]
[1646656673272,0.78118344,38724.0,38723.0,8.88465178]
[1646656673473,0.78118344,38724.0,38723.0,9.38465178]
[1646656674980,0.6517,38724.0,38723.0,9.38465178]
[1646656675174,0.77036575,38724.0,38723.0,9.38465178]
[1646656677123,1.86364035,38724.0,38723.0,9.38465178]
[1646656677323,1.96364035,38724.0,38723.0,9.38465178]
[1646656677525,1.96764035,38724.0,38723.0,9.38465178]
[1646656677725,1.8489746,38724.0,38723.0,9.38465178]
[1646656677922,2.73742496,38724.0,38723.0,9.38465178]
[1646656678124,2.38536896,38724.0,38723.0,9.38465178]
[1646656678524,2.48536896,38724.0,38723.0,10.12124361]
[1646656678724,2.48136896,38724.0,38723.0,10.12124361]
[1646656679324,2.18039436,38724.0,38723.0,10.08324361]
[1646656679523,2.28539436,38724.0,38723.0,10.08324361]
[1646656679966,2.071664,38724.0,38723.0,10.08324361]
[1646656680168,2.18539436,38724.0,38723.0,10.08324361]
[1646656680366,2.23539436,38724.0,38723.0,10.08324361]
[1646656680570,2.33539436,38724.0,38723.0,10.08324361]
[1646656680767,2.33039436,38724.0,38723.0,10.08324361]
[1646656681169,2.59866136,38724.0,38723.0,10.08324361]
[1646656681377,2.59866136,38724.0,38723.0,7.81167395]
[1646656681570,2.71329603,38724.0,38723.0,7.01229986]
[1646656681770,2.82613144,38724.0,38723.0,7.01229986]
[1646656681967,2.55786444,38724.0,38723.0,6.62450586]
[1646656682168,2.54496444,38724.0,38723.0,6.60791052]
[1646656682369,2.47440885,38724.0,38723.0,6.40791052]
[1646656682569,2.56071752,38724.0,38723.0,5.57183555]
[1646656682771,3.45388796,38724.0,38723.0,0.12816627]
[1646656682975,3.45388796,38724.0,38708.0,0.13603619]
[1646656682976,0.7923,38714.0,38708.0,0.13603619]
[1646656683172,0.3,38701.0,38690.0,0.5154752]
[1646656683432,0.0517,38700.0,38690.0,0.2494]
[1646656683627,0.1,38699.0,38690.0,0.2494]
[1646656683826,0.1517,38699.0,38690.0,0.2494]
[1646656684031,0.1517,38699.0,38689.0,1.57137552]
[1646656684032,0.66550095,38699.0,38689.0,0.001]
[1646656684229,0.55195875,38699.0,38691.0,0.27143262]
[1646656684628,0.15195875,38699.0,38697.0,0.00029869]
[1646656684833,0.05195875,38699.0,38697.0,0.00029869]
[1646656685029,0.05195875,38699.0,38698.0,0.395017]
[1646656685030,0.5517,38699.0,38698.0,0.395017]
[1646656685230,0.5517,38699.0,38698.0,0.433887]
[1646656685231,0.2441,38699.0,38698.0,0.433887]
[1646656685432,0.3,38709.0,38698.0,0.407927]
[1646656685630,0.3,38706.0,38699.0,0.0129]
[1646656685828,0.0517,38705.0,38698.0,0.5213095]
[1646656686427,0.0517,38705.0,38698.0,0.3485391]
[1646656686729,0.3,38701.0,38698.0,0.151]
[1646656686929,0.00025864,38699.0,38698.0,0.001]
[1646656687176,0.05195864,38699.0,38698.0,0.001]
[1646656687376,0.45195864,38699.0,38698.0,0.001]
[1646656687775,0.55195864,38699.0,38698.0,0.001]
[1646656687977,0.15195864,38699.0,38698.0,0.001]
[1646656688174,0.75195864,38699.0,38698.0,0.001]
[1646656689382,0.0791407,38692.0,38691.0,0.15]
[1646656690177,0.05,38691.0,38689.0,0.001]
[1646656690378,0.05,38691.0,38687.0,0.17520683]
[1646656690589,0.05,38691.0,38687.0,0.35256346]
[1646656691025,0.5,38689.0,38688.0,0.394017]
[1646656691224,0.55,38689.0,38688.0,0.394017]
[1646656691825,0.55,38689.0,38687.0,0.06464414]
[1646656692025,0.55,38689.0,38686.0,0.19114412]
[1646656692026,0.55,38689.0,38686.0,0.394017]
[1646656692226,0.55,38689.0,38687.0,0.394839]
[1646656692427,0.55,38689.0,38685.0,0.01291]
[1646656692629,0.55,38689.0,38684.0,0.01391]
[1646656692826,0.55,38689.0,38684.0,0.2236028]
[1646656693027,0.55,38689.0,38684.0,0.2106928]
[1646656693626,0.552,38689.0,38684.0,0.2106928]
[1646656694227,0.052,38689.0,38685.0,0.394839]
[1646656694428,0.052,38689.0,38687.0,0.15732223]
[1646656694682,0.002,38689.0,38688.0,0.544839]
[1646656694880,0.00174477,38690.0,38688.0,0.544839]
[1646656695078,0.00174477,38690.0,38689.0,0.15]
[1646656695477,4.477e-05,38690.0,38689.0,0.17596]
[1646656695881,4.07e-05,38692.0,38691.0,0.02596]
[1646656696883,4.07e-05,38692.0,38691.0,0.570799]
[1646656697085,4.07e-05,38692.0,38691.0,1.89073684]
[1646656697386,4.07e-05,38692.0,38691.0,1.80270519]
[1646656697582,4.07e-05,38692.0,38691.0,2.59500519]
[1646656697785,0.3,38706.0,38692.0,1.22596]
[1646656697982,0.2499999,38708.0,38703.0,0.24965184]
[1646656698182,0.2499999,38708.0,38706.0,0.1897322]
[1646656698836,0.05,38708.0,38703.0,0.12922448]
[1646656699036,0.05,38708.0,38696.0,0.12924933]
[1646656699037,0.3,38705.0,38696.0,0.12924933]
[1646656699234,0.3,38705.0,38692.0,0.2305]
[1646656699235,0.064173,38703.0,38699.0,0.15]
[1646656699633,0.064644,38702.0,38699.0,0.15]
[1646656699833,0.014173,38701.0,38699.0,0.15]
[1646656700037,0.064173,38701.0,38695.0,0.20413676]
[1646656700235,0.1998,38696.0,38690.0,0.02596]
[1646656700435,0.1998,38696.0,38691.0,0.33880456]
[1646656700740,0.1998,38696.0,38688.0,0.58007213]
[1646656700741,0.05,38693.0,38688.0,0.58007213]
[1646656700941,0.05,38693.0,38688.0,0.00027213]
[1646656701136,0.070216,38692.0,38686.0,0.212944]
[1646656701336,0.05,38693.0,38688.0,0.00027211]
[1646656701535,0.11466,38691.0,38688.0,0.00027211]
[1646656701746,0.06466,38691.0,38688.0,0.00027211]
[1646656701936,0.1998,38690.0,38688.0,0.00027211]
[1646656702184,0.2498,38690.0,38684.0,0.19847338]
[1646656702379,0.2498,38690.0,38684.0,0.394783]
[1646656702380,0.55,38689.0,38684.0,0.394783]
[1646656702578,0.55,38689.0,38683.0,0.001]
[1646656702780,0.55,38689.0,38685.0,0.394849]
[1646656702978,0.55,38689.0,38684.0,0.394849]
[1646656703379,0.55,38689.0,38685.0,0.21561714]
[1646656703582,0.555,38689.0,38685.0,0.21561714]
[1646656703880,0.7548,38689.0,38685.0,0.21588212]
[1646656704081,0.819459,38689.0,38685.0,0.00026498]
[1646656704582,0.619659,38689.0,38685.0,0.00026498]
[1646656704780,0.1998,38686.0,38685.0,0.394849]
[1646656704981,0.1998,38686.0,38685.0,0.39511397]
[1646656705181,0.2498,38686.0,38685.0,0.00026497]
[1646656705683,0.2538,38686.0,38685.0,0.00026497]
[1646656706130,0.2538,38686.0,38684.0,0.394849]
[1646656706322,0.054,38686.0,38684.0,0.00026498]
[1646656706526,0.2538,38686.0,38684.0,0.00026498]
[1646656706723,0.054,38686.0,38684.0,0.00026498]
[1646656706923,0.05,38686.0,38684.0,0.00026498]
[1646656707125,0.1998,38685.0,38684.0,0.00026498]
[1646656707423,0.2498,38685.0,38684.0,0.394866]
[1646656708628,0.2498,38685.0,38683.0,0.00126504]
[1646656708629,0.05,38685.0,38683.0,0.00126504]
[1646656708826,0.6,38689.0,38684.0,0.394866]
[1646656709025,0.6,38689.0,38683.0,0.00126504]
[1646656709428,0.129326,38688.0,38683.0,0.00126504]
[1646656709679,0.45,38687.0,38683.0,0.001]
[1646656709879,0.45,38687.0,38684.0,0.00026503]
[1646656709880,0.1998,38685.0,38684.0,0.00026503]
[1646656710083,0.2498,38685.0,38684.0,0.00026503]
[1646656710581,0.05,38685.0,38684.0,0.00026503]
[1646656710777,0.1998,38685.0,38683.0,0.001]
[1646656710978,0.1998,38685.0,38683.0,0.00126505]
[1646656711183,0.05,38686.0,38683.0,0.00126505]
[1646656711382,0.05,38686.0,38684.0,0.394866]
[1646656711686,0.95,38689.0,38684.0,0.394866]
[1646656711687,0.1998,38688.0,38684.0,0.394866]
[1646656711880,0.25,38690.0,38685.0,0.3]
[1646656712082,0.25,38690.0,38686.0,0.420826]
[1646656712284,0.25,38690.0,38687.0,0.22149567]
[1646656712480,0.25,38690.0,38689.0,0.26544194]
[1646656712680,0.25,38690.0,38689.0,0.84820101]
[1646656712880,0.0305,38690.0,38689.0,1.14820101]
[1646656713083,0.05,38693.0,38690.0,1.22596]
[1646656713282,0.05,38693.0,38691.0,0.420826]
[1646656714025,0.05,38693.0,38692.0,0.570826]
[1646656714326,0.1998,38701.0,38692.0,0.02596]
[1646656714525,0.4998,38701.0,38692.0,0.02596]
[1646656714925,0.064632,38699.0,38691.0,0.02596]
[1646656715326,0.064632,38699.0,38689.0,0.42737501]
[1646656715726,0.007,38699.0,38689.0,0.42737501]
[1646656715925,0.007,38699.0,38690.0,0.394866]
[1646656715926,0.064646,38697.0,38690.0,0.394866]
[1646656716131,0.007,38699.0,38689.0,0.42737501]
[1646656716132,0.2069,38699.0,38691.0,0.394866]
[1646656716330,0.2569,38699.0,38689.0,0.42737501]
[1646656716527,0.2569,38699.0,38690.0,0.420826]
[1646656716729,0.2569,38699.0,38692.0,0.02596]
[1646656716927,0.2499,38699.0,38693.0,0.394866]
[1646656717176,0.2499,38699.0,38698.0,0.19994267]
[1646656717372,0.2499,38699.0,38698.0,0.394866]
[1646656717574,0.2499,38699.0,38695.0,0.41053041]
[1646656717773,0.2499,38699.0,38695.0,0.15]
[1646656718178,0.2499,38699.0,38692.0,0.06463257]
[1646656718375,0.2499,38699.0,38687.0,0.2017]
[1646656718574,0.429285,38698.0,38689.0,0.15972373]
[1646656718775,0.129285,38698.0,38690.0,0.394866]
[1646656718981,0.129285,38698.0,38689.0,0.15972373]
[1646656719177,0.429285,38698.0,38687.0,0.15]
[1646656719477,0.429285,38698.0,38687.0,0.70894626]
[1646656719478,0.1998,38688.0,38687.0,0.70894626]
[1646656719675,0.2498,38688.0,38687.0,0.544866]
[1646656721626,0.2518,38688.0,38687.0,0.544866]
[1646656721825,0.364647,38701.0,38688.0,1.2]
[1646656722025,0.4,38702.0,38689.0,0.694866]
[1646656722225,0.4,38702.0,38689.0,0.3]
[1646656722825,0.4,38702.0,38692.0,0.196124]
[1646656723227,0.464642,38702.0,38692.0,0.496124]
[1646656723425,0.464642,38702.0,38692.0,0.196124]
[1646656723624,0.05,38701.0,38692.0,0.196124]
[1646656724023,0.05,38701.0,38691.0,0.1865666]
[1646656724228,0.05,38701.0,38690.0,0.22465788]
[1646656725081,0.05,38701.0,38690.0,0.43254334]
[1646656725383,0.064645,38699.0,38690.0,0.43254334]
[1646656725581,0.055,38701.0,38690.0,0.43254334]
[1646656726182,0.119645,38701.0,38690.0,0.43254334]
[1646656726681,0.055,38701.0,38692.0,0.06463912]
[1646656726883,0.05,38701.0,38692.0,0.06463912]
[1646656727082,0.05,38701.0,38690.0,0.48254334]
[1646656727682,0.11864,38701.0,38690.0,0.43254334]
[1646656728082,0.3,38700.0,38690.0,0.43254334]
[1646656728522,0.364649,38698.0,38690.0,0.20788546]
[1646656728724,0.064649,38696.0,38690.0,0.20788546]
[1646656728923,0.414645,38698.0,38690.0,0.20788546]
[1646656729122,0.414645,38698.0,38687.0,0.394866]
[1646656729123,0.41456927,38688.0,38687.0,0.394866]
[1646656729325,0.71456927,38688.0,38686.0,0.00026504]
[1646656729528,0.79983967,38687.0,38686.0,0.00026504]
[1646656729923,0.65,38686.0,38678.0,0.01291]
[1646656730225,0.4517,38685.0,38677.0,0.00020728]
[1646656730422,0.3,38683.0,38675.0,0.49775309]
[1646656730625,0.3,38683.0,38675.0,0.48492541]
[1646656730825,0.114667,38682.0,38675.0,0.47201541]
[1646656731122,0.114667,38682.0,38676.0,0.394866]
[1646656731326,0.114667,38682.0,38677.0,0.394866]
[1646656731327,0.064667,38681.0,38677.0,0.394866]
[1646656732581,0.064667,38681.0,38676.0,0.394866]
[1646656732785,0.064667,38681.0,38677.0,0.39516007]
[1646656733185,0.114667,38682.0,38677.0,0.39516007]
[1646656733785,0.114667,38682.0,38677.0,0.394866]
[1646656733985,0.11572943,38682.0,38678.0,0.00029407]
[1646656734387,0.11572943,38682.0,38679.0,0.394866]
[1646656734788,0.18038943,38682.0,38679.0,0.394866]
[1646656734987,0.18038943,38682.0,38677.0,0.394866]
[1646656735187,0.38028943,38682.0,38679.0,0.0002223]
[1646656735587,0.38028943,38682.0,38680.0,0.394866]
[1646656735930,0.38528943,38682.0,38679.0,0.0002223]
[1646656736131,0.38528943,38682.0,38677.0,0.394866]
[1646656736331,0.38528943,38682.0,38676.0,0.05]
[1646656736332,0.68528943,38682.0,38679.0,0.00028365]
[1646656736530,0.38528943,38682.0,38679.0,0.00028365]
[1646656736732,0.18538943,38682.0,38679.0,0.00028365]
[1646656736931,0.1998,38681.0,38679.0,0.00028365]
[1646656737131,0.1998,38681.0,38680.0,0.394866]
[1646656737336,0.2498,38681.0,38680.0,0.394866]
[1646656737530,0.2498,38681.0,38677.0,0.1146605]
[1646656737531,0.05,38679.0,38678.0,0.39514966]
[1646656738631,0.05,38679.0,38678.0,0.394866]
[1646656739236,0.1998,38679.0,38678.0,0.394866]
[1646656739680,0.2498,38679.0,38678.0,0.394866]
[1646656739881,0.05,38679.0,38678.0,0.394866]
[1646656740279,0.48038943,38682.0,38677.0,0.00028947]
[1646656740480,0.064669,38680.0,38678.0,0.394908]
[1646656740681,0.1998,38679.0,38677.0,0.00028947]
[1646656740879,0.1998,38679.0,38671.0,0.01291]
[1646656740880,0.264475,38679.0,38671.0,0.01291]
[1646656741080,0.1998,38678.0,38677.0,0.00027848]
[1646656741283,0.1998,38678.0,38677.0,0.39519548]
[1646656741480,0.2498,38678.0,38677.0,0.39519548]
[1646656742079,0.2498,38678.0,38677.0,0.394917]
[1646656742080,0.05,38678.0,38677.0,0.394917]
[1646656742484,0.1998,38678.0,38677.0,0.394917]
[1646656743080,0.114675,38679.0,38677.0,0.394917]
[1646656743283,0.114675,38679.0,38678.0,0.394917]
[1646656743528,0.114675,38679.0,38677.0,0.394917]
[1646656743725,0.002,38678.0,38677.0,0.394917]
[1646656744927,0.1158853,38679.0,38677.0,0.394917]
[1646656745327,0.1158853,38679.0,38678.0,0.22489194]
[1646656745628,0.1158853,38679.0,38678.0,0.61980894]
[1646656747781,0.1178853,38679.0,38678.0,0.61980894]
[1646656748583,0.1178853,38679.0,38678.0,0.394917]
[1646656749581,0.0512103,38679.0,38678.0,0.61190673]
[1646656749782,0.0032103,38679.0,38678.0,0.61190673]
[1646656749985,0.2998,38689.0,38679.0,1.2]
[1646656750185,0.2998,38689.0,38687.0,0.21183492]
[1646656750186,0.1,38689.0,38687.0,0.21183492]
[1646656750386,0.2499999,38694.0,38687.0,0.65675192]
[1646656750387,0.3,38693.0,38687.0,0.65675192]
[1646656750585,0.2499999,38694.0,38687.0,0.594917]
[1646656751031,0.1892205,38698.0,38687.0,0.594917]
[1646656751233,0.3,38693.0,38687.0,0.594917]
[1646656751630,0.3,38693.0,38687.0,0.544917]
[1646656752233,0.3,38693.0,38687.0,0.15]
[1646656752632,0.3,38693.0,38687.0,0.544917]
[1646656753232,0.064654,38696.0,38687.0,0.15]
[1646656753233,0.46456927,38688.0,38687.0,0.15]
[1646656753635,0.46456927,38688.0,38685.0,0.00260096]
[1646656753931,0.46856927,38688.0,38685.0,0.00260096]
[1646656755084,0.46456927,38688.0,38685.0,0.00260096]
[1646656755287,0.47922627,38688.0,38685.0,0.00260096]
[1646656755482,0.41456927,38688.0,38684.0,0.12956956]
[1646656755890,0.3,38686.0,38684.0,0.00026386]
[1646656756285,0.5499,38686.0,38684.0,0.00026386]
[1646656756484,0.614566,38686.0,38675.0,0.17473778]
[1646656756685,0.3,38685.0,38676.0,0.394917]
[1646656756885,0.3,38685.0,38683.0,0.00026387]
[1646656757085,0.2997,38684.0,38683.0,0.00026387]
[1646656757385,0.2498,38684.0,38683.0,0.00026387]
[1646656757585,0.6497,38684.0,38683.0,0.00026387]
[1646656757787,0.05,38683.0,38680.0,0.06466548]
[1646656757985,0.05,38683.0,38682.0,0.00026387]
[1646656759032,0.05,38683.0,38681.0,0.394917]
[1646656759233,0.05,38683.0,38681.0,0.39518088]
[1646656760238,0.4998,38684.0,38681.0,0.61133821]
[1646656760437,0.3,38684.0,38681.0,0.61133821]
[1646656760635,0.3,38687.0,38684.0,0.394917]
[1646656761337,0.3,38687.0,38686.0,0.394917]
[1646656761537,0.56462449,38685.0,38684.0,0.39518086]
[1646656762477,0.56462449,38685.0,38684.0,0.394917]
[1646656764483,0.56462449,38685.0,38684.0,0.69189341]
[1646656764682,0.00109317,38687.0,38685.0,1.2]
[1646656764884,0.00109317,38687.0,38686.0,0.394917]
[1646656765082,0.00109317,38687.0,38686.0,0.444917]
[1646656765285,0.00109317,38687.0,38686.0,0.70171987]
[1646656765484,0.00109317,38687.0,38686.0,0.91870515]
[1646656765683,0.00109317,38687.0,38686.0,0.98333815]
[1646656766130,0.00109317,38687.0,38686.0,1.13333815]
[1646656767029,0.00109317,38687.0,38686.0,1.43333815]
[1646656767829,0.00109317,38687.0,38686.0,1.17653528]
[1646656768029,0.00109317,38687.0,38686.0,0.594917]
[1646656769031,0.00109317,38687.0,38686.0,0.859108]
[1646656770080,0.00109317,38687.0,38686.0,0.594917]
[1646656771181,0.00109317,38687.0,38686.0,0.544917]
[1646656771780,0.00609317,38687.0,38686.0,0.544917]
[1646656773182,0.00109317,38687.0,38686.0,0.544917]
[1646656773841,0.00709317,38687.0,38686.0,0.544917]
[1646656774441,0.00709317,38687.0,38686.0,0.594917]
[1646656774643,0.00709317,38687.0,38686.0,0.659559]
[1646656775043,0.00109317,38687.0,38686.0,0.659559]
[1646656775445,0.00109317,38687.0,38686.0,0.94960931]
[1646656775848,0.00209317,38687.0,38686.0,0.94960931]
[1646656776245,0.00209317,38687.0,38686.0,0.88496731]
[1646656776946,0.00209317,38687.0,38686.0,0.594917]
[1646656777184,0.00109317,38687.0,38686.0,0.594917]